fUSD/lending_fUSD_20260621
["ID","MTS","AMOUNT","RATE_DAILY","PERIOD"]
[425876737,1782013878000,-823.97,0.0003041,2]
[425876743,1782013878000,-500.0,0.0003041,2]
[425876739,1782013878000,-500.0,0.0003041,2]
[425876730,1782013878000,-517.67999129,0.0003041,2]
[425876745,1782013878000,-2357.13,0.0003041,2]
[425876742,1782013878000,-670.3,0.0003041,2]
[425876754,1782013878000,-500.0,0.0003041,2]
[425876759,1782013878000,-500.0,0.0003041,2]
[425876755,1782013878000,-500.0,0.0003041,2]
[425876752,1782013878000,-34317.43824,0.0003041,2]
[425876756,1782013878000,-500.0,0.0003041,2]
[425876753,1782013878000,-500.0,0.0003041,2]
[425876757,1782013878000,-500.0,0.0003041,2]
[425876746,1782013878000,-500.0,0.0003041,2]
[425876750,1782013878000,-16323.99,0.0003041,2]
[425876748,1782013878000,-500.0,0.0003041,2]
[425876761,1782013878000,-500.0,0.0003041,2]
[425876751,1782013878000,-515.89666225,0.0003041,2]
[425876758,1782013878000,-608.91,0.0003041,2]
[425876835,1782013879000,-500.0,0.0003041,2]
[425876822,1782013879000,-500.0,0.0003041,2]
[425876825,1782013879000,-500.0,0.0003041,2]
[425876824,1782013879000,-500.0,0.0003041,2]
[425876820,1782013879000,-500.0,0.0003041,2]
[425876838,1782013879000,-500.0,0.0003041,2]
[425876828,1782013879000,-500.0,0.0003041,2]
[425876839,1782013879000,-500.0,0.0003041,2]
[425876837,1782013879000,-500.0,0.0003041,2]
[425876832,1782013879000,-500.0,0.0003041,2]
[425876827,1782013879000,-795.37,0.0003041,2]
[425876831,1782013879000,-500.0,0.0003041,2]
[425876834,1782013879000,-547.58822907,0.0003041,2]
[425876830,1782013879000,-1056.74,0.0003041,2]
[425876829,1782013879000,-500.0,0.0003041,2]
[425876833,1782013879000,-869.82,0.0003041,2]
[425876840,1782013879000,-583.69,0.0003041,2]
[425876849,1782013879000,-521.93256649,0.0003041,2]
[425876851,1782013879000,-500.0,0.0003041,2]
[425876842,1782013879000,-607.83,0.0003041,2]
[425876821,1782013879000,-500.0,0.0003041,2]
[425876847,1782013879000,-500.0,0.0003041,2]
[425876836,1782013879000,-743.14,0.0003041,2]
[425876819,1782013879000,-500.0,0.0003041,2]
[425876808,1782013879000,-500.0,0.0003041,2]
[425876817,1782013879000,-1432.58,0.0003041,2]
[425876841,1782013879000,-500.0,0.0003041,2]
[425876798,1782013879000,-500.0,0.0003041,2]
[425876799,1782013879000,-500.0,0.0003041,2]
[425876795,1782013879000,-500.0,0.0003041,2]
[425876797,1782013879000,-500.0,0.0003041,2]
[425876796,1782013879000,-500.0,0.0003041,2]
[425876801,1782013879000,-500.0,0.0003041,2]
[425876811,1782013879000,-258.69455579,0.0003041,2]
[425876813,1782013879000,-217.66979908,0.0003041,2]
[425876812,1782013879000,-500.0,0.0003041,2]
[425876802,1782013879000,-500.0,0.0003041,2]
[425876818,1782013879000,-500.0,0.0003041,2]
[425876803,1782013879000,-2739.54,0.0003041,2]
[425876805,1782013879000,-500.0,0.0003041,2]
[425876804,1782013879000,-500.0,0.0003041,2]
[425876806,1782013879000,-511.66587064,0.0003041,2]
[425876809,1782013879000,-636.57,0.0003041,2]
[425876807,1782013879000,-679.81,0.0003041,2]
[425876810,1782013879000,-500.0,0.0003041,2]
[425876814,1782013879000,-500.0,0.0003041,2]
[425876815,1782013879000,-500.0,0.0003041,2]
[425876823,1782013879000,-508.17092958,0.0003041,2]
[425876816,1782013879000,-500.0,0.0003041,2]
[425876826,1782013879000,-926.0,0.0003041,2]
[425876800,1782013879000,-1664.91,0.0003041,2]
[425876845,1782013879000,-500.0,0.0003041,2]
[425876867,1782013879000,-500.0,0.0003041,2]
[425876850,1782013879000,-500.0,0.0003041,2]
[425876876,1782013879000,-500.0,0.0003041,2]
[425876887,1782013879000,-500.0,0.0003041,2]
[425876888,1782013879000,-500.0,0.0003041,2]
[425876878,1782013879000,-500.0,0.0003041,2]
[425876879,1782013879000,-500.0,0.0003041,2]
[425876882,1782013879000,-500.0,0.0003041,2]
[425876884,1782013879000,-500.0,0.0003041,2]
[425876881,1782013879000,-2114.61,0.0003041,2]
[425876885,1782013879000,-500.0,0.0003041,2]
[425876880,1782013879000,-500.0,0.0003041,2]
[425876886,1782013879000,-2375.67,0.0003041,2]
[425876883,1782013879000,-500.0,0.0003041,2]
[425876890,1782013879000,-534.00303257,0.0003041,2]
[425876895,1782013879000,-500.0,0.0003041,2]
[425876894,1782013879000,-1492.86,0.0003041,2]
[425876892,1782013879000,-500.0,0.0003041,2]
[425876891,1782013879000,-500.0,0.0003041,2]
[425876893,1782013879000,-500.0,0.0003041,2]
[425876896,1782013879000,-918.67,0.0003041,2]
[425876898,1782013879000,-884.2,0.0003041,2]
[425876899,1782013879000,-500.0,0.0003041,2]
[425876897,1782013879000,-500.0,0.0003041,2]
[425876846,1782013879000,-500.0,0.0003041,2]
[425876877,1782013879000,-500.0,0.0003041,2]
[425876875,1782013879000,-500.0,0.0003041,2]
[425876889,1782013879000,-500.0,0.0003041,2]
[425876871,1782013879000,-500.0,0.0003041,2]
[425876873,1782013879000,-500.0,0.0003041,2]
[425876844,1782013879000,-522.33,0.0003041,2]
[425876848,1782013879000,-367.85776981,0.0003041,2]
[425876853,1782013879000,-754.38,0.0003041,2]
[425876852,1782013879000,-168.90850884,0.0003041,2]
[425876863,1782013879000,-500.0,0.0003041,2]
[425876859,1782013879000,-500.0,0.0003041,2]
[425876854,1782013879000,-500.0,0.0003041,2]
[425876858,1782013879000,-618.23,0.0003041,2]
[425876860,1782013879000,-6378.84,0.0003041,2]
[425876856,1782013879000,-1424.06,0.0003041,2]
[425876855,1782013879000,-901.37,0.0003041,2]
[425876843,1782013879000,-500.0,0.0003041,2]
[425876870,1782013879000,-500.0,0.0003041,2]
[425876861,1782013879000,-500.0,0.0003041,2]
[425876874,1782013879000,-4658.21,0.0003041,2]
[425876872,1782013879000,-500.0,0.0003041,2]
[425876866,1782013879000,-500.0,0.0003041,2]
[425876869,1782013879000,-500.0,0.0003041,2]
[425876865,1782013879000,-500.0,0.0003041,2]
[425876864,1782013879000,-521.99,0.0003041,2]
[425876862,1782013879000,-500.0,0.0003041,2]
[425876857,1782013879000,-500.0,0.0003041,2]
[425876868,1782013879000,-500.0,0.0003041,2]
[425876944,1782013880000,-527.2,0.0003041,2]
[425876935,1782013880000,-500.0,0.0003041,2]
[425876936,1782013880000,-610.54,0.0003041,2]
[425876938,1782013880000,-685.15,0.0003041,2]
[425876939,1782013880000,-500.0,0.0003041,2]
[425876931,1782013880000,-500.0,0.0003041,2]
[425876940,1782013880000,-500.0,0.0003041,2]
[425876937,1782013880000,-500.0,0.0003041,2]
[425876933,1782013880000,-500.0,0.0003041,2]
[425876943,1782013880000,-500.0,0.0003041,2]
[425876948,1782013880000,-500.0,0.0003041,2]
[425876934,1782013880000,-500.0,0.0003041,2]
[425876942,1782013880000,-500.0,0.0003041,2]
[425876967,1782013880000,-500.0,0.0003041,2]
[425876947,1782013880000,-500.0,0.0003041,2]
[425876945,1782013880000,-2244.17,0.0003041,2]
[425876946,1782013880000,-500.0,0.0003041,2]
[425876952,1782013880000,-531.91,0.0003041,2]
[425876953,1782013880000,-578.89,0.0003041,2]
[425876955,1782013880000,-872.58,0.0003041,2]
[425876951,1782013880000,-500.0,0.0003041,2]
[425876954,1782013880000,-420.423312,0.0003041,2]
[425876950,1782013880000,-500.0,0.0003041,2]
[425876957,1782013880000,-523.14,0.0003041,2]
[425876956,1782013880000,-500.0,0.0003041,2]
[425876958,1782013880000,-775.47,0.0003041,2]
[425876941,1782013880000,-5180.59,0.0003041,2]
[425876949,1782013880000,-500.0,0.0003041,2]
[425876932,1782013880000,-1631.14,0.0003041,2]
[425876907,1782013880000,-500.0,0.0003041,120]
[425876930,1782013880000,-509.16937564,0.0003041,2]
[425876902,1782013880000,-1032.52,0.0003041,2]
[425876905,1782013880000,-647.43,0.0003041,2]
[425876900,1782013880000,-1173.97,0.0003041,2]
[425876901,1782013880000,-500.0,0.0003041,2]
[425876906,1782013880000,-525.95,0.0003041,2]
[425876959,1782013880000,-500.0,0.0003041,2]
[425876903,1782013880000,-500.0,0.0003041,2]
[425876904,1782013880000,-500.0,0.0003041,2]
[425876909,1782013880000,-500.0,0.0003041,2]
[425876908,1782013880000,-801.08,0.0003041,2]
[425876916,1782013880000,-512.29,0.0003041,2]
[425876911,1782013880000,-500.0,0.0003041,2]
[425876912,1782013880000,-500.0,0.0003041,2]
[425876918,1782013880000,-500.0,0.0003041,2]
[425876917,1782013880000,-500.0,0.0003041,2]
[425876910,1782013880000,-500.0,0.0003041,2]
[425876913,1782013880000,-511.66,0.0003041,2]
[425876914,1782013880000,-500.0,0.0003041,2]
[425876915,1782013880000,-171.23467934,0.0003041,2]
[425876921,1782013880000,-500.0,0.0003041,2]
[425876922,1782013880000,-603.21825361,0.0003041,2]
[425876920,1782013880000,-500.0,0.0003041,2]
[425876927,1782013880000,-500.0,0.0003041,2]
[425876925,1782013880000,-500.0,0.0003041,2]
[425876923,1782013880000,-3065.16,0.0003041,2]
[425876924,1782013880000,-745.01,0.0003041,2]
[425876926,1782013880000,-500.0,0.0003041,2]
[425876929,1782013880000,-500.0,0.0003041,2]
[425876919,1782013880000,-500.0,0.0003041,2]
[425876928,1782013880000,-500.0,0.0003041,2]
[425876961,1782013880000,-500.0,0.0003041,2]
[425876976,1782013880000,-188.36419498,0.0003041,2]
[425876962,1782013880000,-558.37,0.0003041,2]
[425877001,1782013880000,-500.0,0.0003041,2]
[425876997,1782013880000,-500.0,0.0003041,2]
[425877002,1782013880000,-506.93,0.0003041,2]
[425877004,1782013880000,-790.09,0.0003041,2]
[425876999,1782013880000,-500.0,0.0003041,2]
[425876998,1782013880000,-1098.37,0.0003041,2]
[425876960,1782013880000,-500.0,0.0003041,2]
[425876995,1782013880000,-500.0,0.0003041,2]
[425877005,1782013880000,-528.09,0.0003041,2]
[425877006,1782013880000,-728.07,0.0003041,2]
[425877008,1782013880000,-468.94501346,0.0003041,2]
[425877018,1782013880000,-852.05,0.0003041,2]
[425877010,1782013880000,-500.0,0.0003041,2]
[425877000,1782013880000,-646.67,0.0003041,2]
[425877019,1782013880000,-3313.43,0.0003041,2]
[425877009,1782013880000,-638.77,0.0003041,2]
[425877011,1782013880000,-515.08,0.0003041,2]
[425877012,1782013880000,-500.0,0.0003041,2]
[425877013,1782013880000,-500.0,0.0003041,2]
[425877007,1782013880000,-500.0,0.0003041,2]
[425877014,1782013880000,-500.0,0.0003041,2]
[425877017,1782013880000,-880.09,0.0003041,2]
[425877016,1782013880000,-736.73,0.0003041,2]
[425877015,1782013880000,-500.0,0.0003041,2]
[425877024,1782013880000,-518.40374912,0.0003041,2]
[425877021,1782013880000,-500.0,0.0003041,2]
[425877023,1782013880000,-500.0,0.0003041,2]
[425877022,1782013880000,-500.0,0.0003041,2]
[425877020,1782013880000,-500.0,0.0003041,2]
[425876996,1782013880000,-500.0,0.0003041,2]
[425877003,1782013880000,-734.05,0.0003041,2]
[425876989,1782013880000,-784.68,0.0003041,2]
[425876966,1782013880000,-500.0,0.0003041,2]
[425876964,1782013880000,-500.0,0.0003041,2]
[425876963,1782013880000,-500.0,0.0003041,2]
[425876965,1782013880000,-500.0,0.0003041,2]
[425876980,1782013880000,-500.0,0.0003041,2]
[425876994,1782013880000,-743.4,0.0003041,2]
[425876978,1782013880000,-500.0,0.0003041,2]
[425876977,1782013880000,-606.62,0.0003041,2]
[425876970,1782013880000,-500.0,0.0003041,2]
[425876974,1782013880000,-500.0,0.0003041,2]
[425876972,1782013880000,-500.0,0.0003041,2]
[425876968,1782013880000,-1139.19,0.0003041,2]
[425876975,1782013880000,-687.66,0.0003041,2]
[425876969,1782013880000,-500.0,0.0003041,2]
[425876973,1782013880000,-500.0,0.0003041,2]
[425876979,1782013880000,-500.0,0.0003041,2]
[425876971,1782013880000,-500.0,0.0003041,2]
[425876991,1782013880000,-500.0,0.0003041,2]
[425876990,1782013880000,-500.0,0.0003041,2]
[425876988,1782013880000,-500.0,0.0003041,2]
[425876986,1782013880000,-500.0,0.0003041,2]
[425876992,1782013880000,-500.0,0.0003041,2]
[425876987,1782013880000,-500.0,0.0003041,2]
[425876983,1782013880000,-500.0,0.0003041,2]
[425876981,1782013880000,-500.0,0.0003041,2]
[425876984,1782013880000,-500.0,0.0003041,2]
[425876982,1782013880000,-500.0,0.0003041,2]
[425876993,1782013880000,-500.0,0.0003041,2]
[425876985,1782013880000,-500.0,0.0003041,2]
[425877049,1782013881000,-543.92,0.0003041,2]
[425877042,1782013881000,-1000.0,0.0003041,2]
[425877044,1782013881000,-305.56064316,0.0003041,2]
[425877043,1782013881000,-6854.81,0.0003041,2]
[425877047,1782013881000,-500.0,0.0003041,2]
[425877058,1782013881000,-617.88,0.0003041,2]
[425877057,1782013881000,-519.85063571,0.0003041,2]
[425877050,1782013881000,-500.0,0.0003041,2]
[425877052,1782013881000,-624.26,0.0003041,2]
[425877048,1782013881000,-500.0,0.0003041,2]
[425877055,1782013881000,-500.0,0.0003041,2]
[425877054,1782013881000,-500.0,0.0003041,2]
[425877053,1782013881000,-500.0,0.0003041,2]
[425877056,1782013881000,-500.0,0.0003041,2]
[425877045,1782013881000,-300.0,0.0003041,2]
[425877060,1782013881000,-747.33,0.0003041,2]
[425877051,1782013881000,-1672.96,0.0003041,2]
[425877041,1782013881000,-616.72,0.0003041,2]
[425877064,1782013881000,-585.48,0.0003041,2]
[425877040,1782013881000,-5709.41,0.0003041,2]
[425877061,1782013881000,-817.63,0.0003041,2]
[425877028,1782013881000,-869.54,0.0003041,2]
[425877027,1782013881000,-500.0,0.0003041,2]
[425877025,1782013881000,-500.0,0.0003041,2]
[425877033,1782013881000,-500.0,0.0003041,2]
[425877031,1782013881000,-701.53,0.0003041,2]
[425877030,1782013881000,-500.0,0.0003041,2]
[425877039,1782013881000,-500.0,0.0003041,2]
[425877029,1782013881000,-500.0,0.0003041,2]
[425877032,1782013881000,-500.0,0.0003041,2]
[425877034,1782013881000,-500.0,0.0003041,2]
[425877046,1782013881000,-500.0,0.0003041,2]
[425877036,1782013881000,-500.0,0.0003041,2]
[425877035,1782013881000,-500.0,0.0003041,2]
[425877038,1782013881000,-500.0,0.0003041,2]
[425877037,1782013881000,-592.69,0.0003041,2]
[425877026,1782013881000,-500.0,0.0003041,2]
[425877059,1782013881000,-500.0,0.0003041,2]
[425877083,1782013881000,-1092.23,0.0003041,2]
[425877063,1782013881000,-527.19,0.0003041,2]
[425877085,1782013881000,-500.0,0.0003041,2]
[425877086,1782013881000,-500.0,0.0003041,2]
[425877090,1782013881000,-741.12,0.0003041,2]
[425877087,1782013881000,-904.05,0.0003041,2]
[425877084,1782013881000,-500.0,0.0003041,2]
[425877088,1782013881000,-500.0,0.0003041,2]
[425877089,1782013881000,-1188.54,0.0003041,2]
[425877078,1782013881000,-500.0,0.0003041,2]
[425877092,1782013881000,-500.0,0.0003041,2]
[425877091,1782013881000,-500.0,0.0003041,2]
[425877093,1782013881000,-582.57,0.0003041,2]
[425877096,1782013881000,-500.0,0.0003041,2]
[425877094,1782013881000,-500.0,0.0003041,2]
[425877097,1782013881000,-500.0,0.0003041,2]
[425877099,1782013881000,-500.0,0.0003041,2]
[425877062,1782013881000,-500.0,0.0003041,2]
[425877095,1782013881000,-3923.16,0.0003041,2]
[425877080,1782013881000,-500.0,0.0003041,2]
[425877098,1782013881000,-500.0,0.0003041,2]
[425877100,1782013881000,-626.55,0.0003041,2]
[425877081,1782013881000,-500.0,0.0003041,2]
[425877101,1782013881000,-500.0,0.0003041,2]
[425877068,1782013881000,-500.0,0.0003041,2]
[425877066,1782013881000,-500.0,0.0003041,2]
[425877065,1782013881000,-509.94156455,0.0003041,2]
[425877070,1782013881000,-500.0,0.0003041,2]
[425877067,1782013881000,-844.5,0.0003041,2]
[425877072,1782013881000,-500.0,0.0003041,2]
[425877069,1782013881000,-500.0,0.0003041,2]
[425877073,1782013881000,-801.57,0.0003041,2]
[425877071,1782013881000,-814.25,0.0003041,2]
[425877076,1782013881000,-500.0,0.0003041,2]
[425877077,1782013881000,-702.77,0.0003041,2]
[425877075,1782013881000,-500.0,0.0003041,2]
[425877079,1782013881000,-500.0,0.0003041,2]
[425877074,1782013881000,-359.91507559,0.0003041,2]
[425877082,1782013881000,-500.0,0.0003041,2]
[425877121,1782013882000,-500.0,0.0003041,2]
[425877119,1782013882000,-500.0,0.0003041,2]
[425877126,1782013882000,-614.49100673,0.0003041,2]
[425877123,1782013882000,-523.29,0.0003041,2]
[425877130,1782013882000,-390.6,0.00030411,2]
[425877125,1782013882000,-500.0,0.0003041,2]
[425877128,1782013882000,-281.0,0.00030411,120]
[425877122,1782013882000,-609.23,0.0003041,2]
[425877127,1782013882000,-150.29,0.00030411,120]
[425877124,1782013882000,-952.49,0.0003041,2]
[425877132,1782013882000,-8196.727328,0.00030419,2]
[425877118,1782013882000,-500.0,0.0003041,2]
[425877142,1782013882000,-421.0,0.00030675,2]
[425877129,1782013882000,-748.87,0.00030411,2]
[425877117,1782013882000,-500.0,0.0003041,2]
[425877109,1782013882000,-500.0,0.0003041,2]
[425877112,1782013882000,-846.33,0.0003041,2]
[425877115,1782013882000,-500.0,0.0003041,2]
[425877114,1782013882000,-500.0,0.0003041,2]
[425877113,1782013882000,-500.0,0.0003041,2]
[425877111,1782013882000,-500.0,0.0003041,2]
[425877110,1782013882000,-500.0,0.0003041,2]
[425877108,1782013882000,-500.0,0.0003041,2]
[425877107,1782013882000,-7914.34,0.0003041,2]
[425877105,1782013882000,-500.0,0.0003041,2]
[425877106,1782013882000,-1065.67,0.0003041,2]
[425877104,1782013882000,-1312.08,0.0003041,2]
[425877103,1782013882000,-500.0,0.0003041,2]
[425877102,1782013882000,-758.84,0.0003041,2]
[425877131,1782013882000,-734.6611388,0.00030419,2]
[425877116,1782013882000,-500.0,0.0003041,2]
[425877135,1782013882000,-2500.0,0.000305,2]
[425877120,1782013882000,-500.0,0.0003041,2]
[425877134,1782013882000,-25000.0,0.000305,2]
[425877156,1782013882000,-500.0,0.00030684,2]
[425877163,1782013882000,-500.0,0.00030684,2]
[425877161,1782013882000,-541.73786835,0.00030684,2]
[425877160,1782013882000,-645.72,0.00030684,2]
[425877165,1782013882000,-500.0,0.00030684,2]
[425877167,1782013882000,-500.0,0.00030684,2]
[425877154,1782013882000,-500.0,0.00030684,2]
[425877166,1782013882000,-562.22,0.00030684,2]
[425877164,1782013882000,-977.38,0.00030684,2]
[425877162,1782013882000,-500.0,0.00030684,2]
[425877157,1782013882000,-959.52,0.00030684,2]
[425877159,1782013882000,-620.59390427,0.00030684,2]
[425877168,1782013882000,-529.40509909,0.00030684,2]
[425877136,1782013882000,-2346.0,0.0003058,3]
[425877155,1782013882000,-500.0,0.00030684,2]
[425877150,1782013882000,-626.5,0.00030684,2]
[425877158,1782013882000,-500.0,0.00030684,2]
[425877144,1782013882000,-6194.01849003,0.00030684,2]
[425877153,1782013882000,-519.83574775,0.00030684,2]
[425877139,1782013882000,-1374.32466088,0.00030584,2]
[425877137,1782013882000,-162.0,0.0003058,3]
[425877138,1782013882000,-292.15128871,0.00030584,2]
[425877140,1782013882000,-312.08,0.0003062,3]
[425877141,1782013882000,-151.753,0.00030626,120]
[425877143,1782013882000,-768.54527305,0.00030684,15]
[425877133,1782013882000,-165.35656661,0.0003043,2]
[425877152,1782013882000,-601.5,0.00030684,2]
[425877148,1782013882000,-500.0,0.00030684,2]
[425877151,1782013882000,-820.99,0.00030684,2]
[425877147,1782013882000,-472.15732194,0.00030684,2]
[425877149,1782013882000,-500.0,0.00030684,2]
[425877146,1782013882000,-500.0,0.00030684,2]
[425877145,1782013882000,-500.0,0.00030684,2]
[425877219,1782013883000,-500.0,0.00030684,2]
[425877216,1782013883000,-500.0,0.00030684,2]
[425877218,1782013883000,-500.0,0.00030684,2]
[425877212,1782013883000,-500.0,0.00030684,2]
[425877208,1782013883000,-658.33,0.00030684,2]
[425877209,1782013883000,-500.0,0.00030684,2]
[425877210,1782013883000,-500.0,0.00030684,2]
[425877207,1782013883000,-475.86,0.00030684,2]
[425877197,1782013883000,-500.0,0.00030684,2]
[425877198,1782013883000,-601.78,0.00030684,2]
[425877213,1782013883000,-1427.42,0.00030684,2]
[425877204,1782013883000,-500.0,0.00030684,2]
[425877211,1782013883000,-500.0,0.00030684,2]
[425877205,1782013883000,-500.0,0.00030684,2]
[425877220,1782013883000,-500.0,0.00030684,2]
[425877217,1782013883000,-500.0,0.00030684,2]
[425877215,1782013883000,-810.09,0.00030684,2]
[425877221,1782013883000,-536.56871739,0.00030684,2]
[425877231,1782013883000,-648.44,0.00030684,2]
[425877232,1782013883000,-500.0,0.00030684,2]
[425877222,1782013883000,-632.01925536,0.00030684,2]
[425877224,1782013883000,-500.0,0.00030684,2]
[425877230,1782013883000,-500.0,0.00030684,2]
[425877226,1782013883000,-500.0,0.00030684,2]
[425877225,1782013883000,-500.0,0.00030684,2]
[425877223,1782013883000,-500.0,0.00030684,2]
[425877229,1782013883000,-500.0,0.00030684,2]
[425877202,1782013883000,-530.20018931,0.00030684,2]
[425877227,1782013883000,-784.61,0.00030684,2]
[425877214,1782013883000,-500.0,0.00030684,2]
[425877196,1782013883000,-500.0,0.00030684,2]
[425877183,1782013883000,-500.0,0.00030684,2]
[425877200,1782013883000,-500.0,0.00030684,2]
[425877228,1782013883000,-500.0,0.00030684,2]
[425877177,1782013883000,-500.0,0.00030684,2]
[425877173,1782013883000,-500.0,0.00030684,2]
[425877175,1782013883000,-921.8,0.00030684,2]
[425877171,1782013883000,-824.18,0.00030684,2]
[425877176,1782013883000,-903.13,0.00030684,2]
[425877170,1782013883000,-500.0,0.00030684,2]
[425877169,1782013883000,-500.0,0.00030684,2]
[425877172,1782013883000,-500.0,0.00030684,2]
[425877174,1782013883000,-1027.02,0.00030684,2]
[425877178,1782013883000,-500.0,0.00030684,2]
[425877179,1782013883000,-707.99,0.00030684,2]
[425877180,1782013883000,-500.0,0.00030684,2]
[425877182,1782013883000,-500.0,0.00030684,2]
[425877181,1782013883000,-500.0,0.00030684,2]
[425877193,1782013883000,-500.0,0.00030684,2]
[425877186,1782013883000,-500.0,0.00030684,2]
[425877184,1782013883000,-500.0,0.00030684,2]
[425877192,1782013883000,-500.0,0.00030684,2]
[425877189,1782013883000,-1062.93,0.00030684,2]
[425877185,1782013883000,-500.0,0.00030684,2]
[425877188,1782013883000,-500.0,0.00030684,2]
[425877191,1782013883000,-500.0,0.00030684,2]
[425877187,1782013883000,-554.73,0.00030684,2]
[425877195,1782013883000,-500.0,0.00030684,2]
[425877194,1782013883000,-694.09,0.00030684,2]
[425877206,1782013883000,-500.0,0.00030684,2]
[425877199,1782013883000,-500.0,0.00030684,2]
[425877201,1782013883000,-500.0,0.00030684,2]
[425877203,1782013883000,-500.0,0.00030684,2]
[425877235,1782013883000,-500.0,0.00030684,2]
[425877190,1782013883000,-500.0,0.00030684,2]
[425877234,1782013883000,-500.0,0.00030684,2]
[425877266,1782013883000,-500.0,0.00030684,2]
[425877269,1782013883000,-500.0,0.00030684,2]
[425877273,1782013883000,-500.0,0.00030684,2]
[425877272,1782013883000,-500.0,0.00030684,2]
[425877298,1782013883000,-500.0,0.00030684,2]
[425877284,1782013883000,-500.0,0.00030684,2]
[425877283,1782013883000,-500.0,0.00030684,2]
[425877285,1782013883000,-500.0,0.00030684,2]
[425877280,1782013883000,-534.11,0.00030684,2]
[425877276,1782013883000,-500.0,0.00030684,2]
[425877274,1782013883000,-500.0,0.00030684,2]
[425877275,1782013883000,-724.5,0.00030684,2]
[425877277,1782013883000,-500.0,0.00030684,2]
[425877281,1782013883000,-500.0,0.00030684,2]
[425877279,1782013883000,-500.0,0.00030684,2]
[425877282,1782013883000,-500.0,0.00030684,2]
[425877278,1782013883000,-500.0,0.00030684,2]
[425877286,1782013883000,-500.0,0.00030684,2]
[425877289,1782013883000,-500.0,0.00030684,2]
[425877292,1782013883000,-500.0,0.00030684,2]
[425877297,1782013883000,-500.0,0.00030684,2]
[425877291,1782013883000,-500.0,0.00030684,2]
[425877287,1782013883000,-500.0,0.00030684,2]
[425877290,1782013883000,-732.94,0.00030684,2]
[425877288,1782013883000,-500.0,0.00030684,2]
[425877293,1782013883000,-627.32,0.00030684,2]
[425877296,1782013883000,-500.0,0.00030684,2]
[425877294,1782013883000,-500.0,0.00030684,2]
[425877237,1782013883000,-500.0,0.00030684,2]
[425877271,1782013883000,-500.0,0.00030684,2]
[425877260,1782013883000,-500.0,0.00030684,2]
[425877295,1782013883000,-785.14,0.00030684,2]
[425877270,1782013883000,-170.7,0.00030684,2]
[425877263,1782013883000,-500.0,0.00030684,2]
[425877238,1782013883000,-500.0,0.00030684,2]
[425877233,1782013883000,-500.0,0.00030684,2]
[425877244,1782013883000,-500.0,0.00030684,2]
[425877240,1782013883000,-500.0,0.00030684,2]
[425877241,1782013883000,-500.0,0.00030684,2]
[425877239,1782013883000,-587.82,0.00030684,2]
[425877245,1782013883000,-500.0,0.00030684,2]